Workbook

Sheet FRA. DTO. COMERCIAL
I4: BANCO | J4: BCO4 (SABADELL)
E6: FECHA ACTUAL | I6: COSTE EFECTIVO EN % ANUAL | L6: =IF(D10=0,"",((1+L7)^(360/F10))-1) -> 19.46%
B7: FECHA DE NEGOCIACIÓN | D7: 2014-01-15 | E7: =TODAY() -> 2014-08-15 | I7: TAE VTO MEDIO | L7: =IF(D10="","",(D10/E10)-1) -> 6.30%
B9: EFECTOS | D9: TOTAL NEGOCIADO | E9: EFECTIVO NEGOCIACIÓN | F9: VENCIMIENTO MEDIO | G9: T.A.E. | H9: INTERESES | I9: TIPO MEDIO DE COMISION | J9: COMISION EFECTO | K9: CORREO | L9: TIMBRES | M9: TOTAL GASTOS
B10: =COUNT(B14:B28) -> 3 | D10: =SUM(D14:D28) -> 6,000.00 € | E10: =D10-H10-J10-L10-K10 -> 5,644.53 € | F10: =IF(D10=0,"",SUMPRODUCT(D14:D28,F14:F28)/D10) -> 123.67 días | G10: =(M10/F10*360)/E10 -> 18.33% | H10: =SUM(H14:H28) -> 82.44 € | I10: =IF(D10=0,"",J10/D10) -> 4.000% | J10: =SUM(J14:J28) -> 240.00 € | K10: =SUM(K14:K28) -> 12.00 € | L10: =SUM(L14:L28) -> 21.03 € | M10: =H10+J10+L10+K10 -> 355.47 €
B13: Nº | C13: TIPO DE EFECTO | D13: NOMINAL | E13: VENCIMIENTO | F13: DÍAS | G13: TIPO INTERÉS | H13: INTERESES | I13: T.Comisión | J13: COMISIÓN | K13: CORREO | L13: TIMBRE | M13: TOTAL
B14: =IF(COUNTA(C14:E14)=0,"",MAX(B$13:B13)+1) -> 1 | C14: d | D14: 1,000.00 € | E14: 2014-02-28 | F14: =IF(E14="","",E14-$D$7) -> 44 | G14: =IF(E14="","",VLOOKUP(CONCATENATE($J$4,"-",REPT("0",3-LEN(F14)),F14),'CONDICIONES BANCARIAS'!$B$63:$E$112,4,1)) -> 4.00% | H14: =IF(G14="","",(D14*G14*F14)/360) -> 4.89 € | I14: =IF(E14="","",VLOOKUP(CONCATENATE($J$4,"-",C14),'CONDICIONES BANCARIAS'!$B$19:$E$58,4,0)) -> 4.000% | J14: =IF(I14="","",MAX(D14*I14,VLOOKUP(CONCATENATE($J$4,"-","Mínimo"),'CONDICIONES BANCARIAS'!$B$19:$E$58,4,0))) -> 40.00 € | K14: =IF(E14="","",VLOOKUP($J$4,'CONDICIONES BANCARIAS'!$B$117:$D$126,3,0)) -> 4.00 € | L14: =IF(E14="","",VLOOKUP(D14,TIMBRES,2)) -> 4.21 € | M14: =IF(E14="","",SUM(H14,J14,K14,L14)) -> 53.10 €
B15: 2 | C15: dna | D15: 2,000.00 € | E15: 2014-04-28 | F15: 103 | G15: =IF(E15="","",VLOOKUP(CONCATENATE($J$4,"-",REPT("0",3-LEN(F15)),F15),'CONDICIONES BANCARIAS'!$B$63:$E$112,4,1)) -> 4.00% | H15: =IF(G15="","",(D15*G15*F15)/360) -> 22.89 € | I15: =IF(E15="","",VLOOKUP(CONCATENATE($J$4,"-",C15),'CONDICIONES BANCARIAS'!$B$19:$E$58,4,0)) -> 4.000% | J15: =IF(I15="","",MAX(D15*I15,VLOOKUP(CONCATENATE($J$4,"-","Mínimo"),'CONDICIONES BANCARIAS'!$B$19:$E$58,4,0))) -> 80.00 € | K15: =IF(E15="","",VLOOKUP($J$4,'CONDICIONES BANCARIAS'!$B$117:$D$126,3,0)) -> 4.00 € | L15: 8.41 € | M15: =IF(E15="","",SUM(H15,J15,K15,L15)) -> 115.30 €
B16: 3 | C16: nd | D16: 3,000.00 € | E16: 2014-06-28 | F16: 164 | G16: =IF(E16="","",VLOOKUP(CONCATENATE($J$4,"-",REPT("0",3-LEN(F16)),F16),'CONDICIONES BANCARIAS'!$B$63:$E$112,4,1)) -> 4.00% | H16: 54.67 € | I16: =IF(E16="","",VLOOKUP(CONCATENATE($J$4,"-",C16),'CONDICIONES BANCARIAS'!$B$19:$E$58,4,0)) -> 4.000% | J16: =IF(I16="","",MAX(D16*I16,VLOOKUP(CONCATENATE($J$4,"-","Mínimo"),'CONDICIONES BANCARIAS'!$B$19:$E$58,4,0))) -> 120.00 € | K16: =IF(E16="","",VLOOKUP($J$4,'CONDICIONES BANCARIAS'!$B$117:$D$126,3,0)) -> 4.00 € | L16: 8.41 € | M16: 187.08 €
B17: =IF(COUNTA(C17:E17)=0,"",MAX(B$13:B16)+1) ->  | G17: =IF(E17="","",VLOOKUP(CONCATENATE($J$4,"-",REPT("0",3-LEN(F17)),F17),'CONDICIONES BANCARIAS'!$B$63:$E$112,4,1)) ->  | I17: =IF(E17="","",VLOOKUP(CONCATENATE($J$4,"-",C17),'CONDICIONES BANCARIAS'!$B$19:$E$58,4,0)) ->  | J17: =IF(I17="","",MAX(D17*I17,VLOOKUP(CONCATENATE($J$4,"-","Mínimo"),'CONDICIONES BANCARIAS'!$B$19:$E$58,4,0))) ->  | K17: =IF(E17="","",VLOOKUP($J$4,'CONDICIONES BANCARIAS'!$B$117:$D$126,3,0)) -> 
B18: =IF(COUNTA(C18:E18)=0,"",MAX(B$13:B17)+1) ->  | G18: =IF(E18="","",VLOOKUP(CONCATENATE($J$4,"-",REPT("0",3-LEN(F18)),F18),'CONDICIONES BANCARIAS'!$B$63:$E$112,4,1)) ->  | I18: =IF(E18="","",VLOOKUP(CONCATENATE($J$4,"-",C18),'CONDICIONES BANCARIAS'!$B$19:$E$58,4,0)) ->  | J18: =IF(I18="","",MAX(D18*I18,VLOOKUP(CONCATENATE($J$4,"-","Mínimo"),'CONDICIONES BANCARIAS'!$B$19:$E$58,4,0))) ->  | K18: =IF(E18="","",VLOOKUP($J$4,'CONDICIONES BANCARIAS'!$B$117:$D$126,3,0)) -> 
B19: =IF(COUNTA(C19:E19)=0,"",MAX(B$13:B18)+1) ->  | G19: =IF(E19="","",VLOOKUP(CONCATENATE($J$4,"-",REPT("0",3-LEN(F19)),F19),'CONDICIONES BANCARIAS'!$B$63:$E$112,4,1)) ->  | I19: =IF(E19="","",VLOOKUP(CONCATENATE($J$4,"-",C19),'CONDICIONES BANCARIAS'!$B$19:$E$58,4,0)) ->  | J19: =IF(I19="","",MAX(D19*I19,VLOOKUP(CONCATENATE($J$4,"-","Mínimo"),'CONDICIONES BANCARIAS'!$B$19:$E$58,4,0))) ->  | K19: =IF(E19="","",VLOOKUP($J$4,'CONDICIONES BANCARIAS'!$B$117:$D$126,3,0)) -> 
B20: =IF(COUNTA(C20:E20)=0,"",MAX(B$13:B19)+1) ->  | G20: =IF(E20="","",VLOOKUP(CONCATENATE($J$4,"-",REPT("0",3-LEN(F20)),F20),'CONDICIONES BANCARIAS'!$B$63:$E$112,4,1)) ->  | I20: =IF(E20="","",VLOOKUP(CONCATENATE($J$4,"-",C20),'CONDICIONES BANCARIAS'!$B$19:$E$58,4,0)) ->  | J20: =IF(I20="","",MAX(D20*I20,VLOOKUP(CONCATENATE($J$4,"-","Mínimo"),'CONDICIONES BANCARIAS'!$B$19:$E$58,4,0))) ->  | K20: =IF(E20="","",VLOOKUP($J$4,'CONDICIONES BANCARIAS'!$B$117:$D$126,3,0)) -> 
B21: =IF(COUNTA(C21:E21)=0,"",MAX(B$13:B20)+1) ->  | G21: =IF(E21="","",VLOOKUP(CONCATENATE($J$4,"-",REPT("0",3-LEN(F21)),F21),'CONDICIONES BANCARIAS'!$B$63:$E$112,4,1)) ->  | I21: =IF(E21="","",VLOOKUP(CONCATENATE($J$4,"-",C21),'CONDICIONES BANCARIAS'!$B$19:$E$58,4,0)) ->  | J21: =IF(I21="","",MAX(D21*I21,VLOOKUP(CONCATENATE($J$4,"-","Mínimo"),'CONDICIONES BANCARIAS'!$B$19:$E$58,4,0))) ->  | K21: =IF(E21="","",VLOOKUP($J$4,'CONDICIONES BANCARIAS'!$B$117:$D$126,3,0)) -> 
B22: =IF(COUNTA(C22:E22)=0,"",MAX(B$13:B21)+1) ->  | G22: =IF(E22="","",VLOOKUP(CONCATENATE($J$4,"-",REPT("0",3-LEN(F22)),F22),'CONDICIONES BANCARIAS'!$B$63:$E$112,4,1)) ->  | I22: =IF(E22="","",VLOOKUP(CONCATENATE($J$4,"-",C22),'CONDICIONES BANCARIAS'!$B$19:$E$58,4,0)) ->  | J22: =IF(I22="","",MAX(D22*I22,VLOOKUP(CONCATENATE($J$4,"-","Mínimo"),'CONDICIONES BANCARIAS'!$B$19:$E$58,4,0))) ->  | K22: =IF(E22="","",VLOOKUP($J$4,'CONDICIONES BANCARIAS'!$B$117:$D$126,3,0)) -> 
B23: =IF(COUNTA(C23:E23)=0,"",MAX(B$13:B22)+1) ->  | G23: =IF(E23="","",VLOOKUP(CONCATENATE($J$4,"-",REPT("0",3-LEN(F23)),F23),'CONDICIONES BANCARIAS'!$B$63:$E$112,4,1)) ->  | I23: =IF(E23="","",VLOOKUP(CONCATENATE($J$4,"-",C23),'CONDICIONES BANCARIAS'!$B$19:$E$58,4,0)) ->  | J23: =IF(I23="","",MAX(D23*I23,VLOOKUP(CONCATENATE($J$4,"-","Mínimo"),'CONDICIONES BANCARIAS'!$B$19:$E$58,4,0))) ->  | K23: =IF(E23="","",VLOOKUP($J$4,'CONDICIONES BANCARIAS'!$B$117:$D$126,3,0)) -> 
B24: =IF(COUNTA(C24:E24)=0,"",MAX(B$13:B23)+1) ->  | G24: =IF(E24="","",VLOOKUP(CONCATENATE($J$4,"-",REPT("0",3-LEN(F24)),F24),'CONDICIONES BANCARIAS'!$B$63:$E$112,4,1)) ->  | I24: =IF(E24="","",VLOOKUP(CONCATENATE($J$4,"-",C24),'CONDICIONES BANCARIAS'!$B$19:$E$58,4,0)) ->  | J24: =IF(I24="","",MAX(D24*I24,VLOOKUP(CONCATENATE($J$4,"-","Mínimo"),'CONDICIONES BANCARIAS'!$B$19:$E$58,4,0))) ->  | K24: =IF(E24="","",VLOOKUP($J$4,'CONDICIONES BANCARIAS'!$B$117:$D$126,3,0)) -> 
B25: =IF(COUNTA(C25:E25)=0,"",MAX(B$13:B24)+1) ->  | G25: =IF(E25="","",VLOOKUP(CONCATENATE($J$4,"-",REPT("0",3-LEN(F25)),F25),'CONDICIONES BANCARIAS'!$B$63:$E$112,4,1)) ->  | I25: =IF(E25="","",VLOOKUP(CONCATENATE($J$4,"-",C25),'CONDICIONES BANCARIAS'!$B$19:$E$58,4,0)) ->  | J25: =IF(I25="","",MAX(D25*I25,VLOOKUP(CONCATENATE($J$4,"-","Mínimo"),'CONDICIONES BANCARIAS'!$B$19:$E$58,4,0))) ->  | K25: =IF(E25="","",VLOOKUP($J$4,'CONDICIONES BANCARIAS'!$B$117:$D$126,3,0)) -> 
B26: =IF(COUNTA(C26:E26)=0,"",MAX(B$13:B25)+1) ->  | G26: =IF(E26="","",VLOOKUP(CONCATENATE($J$4,"-",REPT("0",3-LEN(F26)),F26),'CONDICIONES BANCARIAS'!$B$63:$E$112,4,1)) ->  | I26: =IF(E26="","",VLOOKUP(CONCATENATE($J$4,"-",C26),'CONDICIONES BANCARIAS'!$B$19:$E$58,4,0)) ->  | J26: =IF(I26="","",MAX(D26*I26,VLOOKUP(CONCATENATE($J$4,"-","Mínimo"),'CONDICIONES BANCARIAS'!$B$19:$E$58,4,0))) ->  | K26: =IF(E26="","",VLOOKUP($J$4,'CONDICIONES BANCARIAS'!$B$117:$D$126,3,0)) -> 
B27: =IF(COUNTA(C27:E27)=0,"",MAX(B$13:B26)+1) ->  | G27: =IF(E27="","",VLOOKUP(CONCATENATE($J$4,"-",REPT("0",3-LEN(F27)),F27),'CONDICIONES BANCARIAS'!$B$63:$E$112,4,1)) ->  | I27: =IF(E27="","",VLOOKUP(CONCATENATE($J$4,"-",C27),'CONDICIONES BANCARIAS'!$B$19:$E$58,4,0)) ->  | J27: =IF(I27="","",MAX(D27*I27,VLOOKUP(CONCATENATE($J$4,"-","Mínimo"),'CONDICIONES BANCARIAS'!$B$19:$E$58,4,0))) ->  | K27: =IF(E27="","",VLOOKUP($J$4,'CONDICIONES BANCARIAS'!$B$117:$D$126,3,0)) -> 
B28: =IF(COUNTA(C28:E28)=0,"",MAX(B$13:B27)+1) ->  | G28: =IF(E28="","",VLOOKUP(CONCATENATE($J$4,"-",REPT("0",3-LEN(F28)),F28),'CONDICIONES BANCARIAS'!$B$63:$E$112,4,1)) ->  | I28: =IF(E28="","",VLOOKUP(CONCATENATE($J$4,"-",C28),'CONDICIONES BANCARIAS'!$B$19:$E$58,4,0)) ->  | J28: =IF(I28="","",MAX(D28*I28,VLOOKUP(CONCATENATE($J$4,"-","Mínimo"),'CONDICIONES BANCARIAS'!$B$19:$E$58,4,0))) ->  | K28: =IF(E28="","",VLOOKUP($J$4,'CONDICIONES BANCARIAS'!$B$117:$D$126,3,0)) -> 

Sheet CONDICIONES BANCARIAS
B2: CONDICIONES BANCARIAS
B4: ENTIDADES BANCARIAS
C5: ENTIDAD
C6: BCO1 (CAIXA POPULAR)
C7: BCO2 (POPULAR)
C8: BCO3 (BANKINTER)
C9: BCO4 (SABADELL)
C10: BCO5 (SANTANDER)
C11: BCO6 (BBVA)
C12: BCO7 (IBERCAJA)
C13: BCO8 (MARCH)
C14: BCO9 (CAIXABANK)
B17: COMISIONES
B18: CLAVE | C18: ENTIDAD | D18: CODIGO | E18: PORCENTAJE
B19: =IF(C19="","Z",CONCATENATE(C19,"-",D19)) -> BCO1 (CAIXA POPULAR)-d | C19: BCO1 (CAIXA POPULAR) | D19: d | E19: 1.00% | G19: d=domiciliado
B20: =IF(C20="","Z",CONCATENATE(C20,"-",D20)) -> BCO1 (CAIXA POPULAR)-dna | C20: BCO1 (CAIXA POPULAR) | D20: dna | E20: 1.00% | G20: dna=domiciliado no aceptado
B21: BCO1 (CAIXA POPULAR)-nd | C21: BCO1 (CAIXA POPULAR) | D21: nd | E21: 1.000% | G21: nd=no domiciliado
B22: BCO1 (CAIXA POPULAR)-Mínimo | C22: BCO1 (CAIXA POPULAR) | D22: Mínimo | E22: 1.00
B23: BCO2 (POPULAR)-d | C23: BCO2 (POPULAR) | D23: d | E23: 2.000%
B24: BCO2 (POPULAR)-dna | C24: BCO2 (POPULAR) | D24: dna | E24: 2.00%
B25: BCO2 (POPULAR)-nd | C25: BCO2 (POPULAR) | D25: nd | E25: 2.000%
B26: BCO2 (POPULAR)-Mínimo | C26: BCO2 (POPULAR) | D26: Mínimo | E26: 2.00
B27: BCO3 (BANKINTER)-d | C27: BCO3 (BANKINTER) | D27: d | E27: 3.000%
B28: BCO3 (BANKINTER)-dna | C28: BCO3 (BANKINTER) | D28: dna | E28: 3.000%
B29: BCO3 (BANKINTER)-nd | C29: BCO3 (BANKINTER) | D29: nd | E29: 3.000%
B30: BCO3 (BANKINTER)-Mínimo | C30: BCO3 (BANKINTER) | D30: Mínimo | E30: 3.00
B31: BCO4 (SABADELL)-d | C31: BCO4 (SABADELL) | D31: d | E31: 4.000%
B32: BCO4 (SABADELL)-dna | C32: BCO4 (SABADELL) | D32: dna | E32: 4.000%
B33: BCO4 (SABADELL)-nd | C33: BCO4 (SABADELL) | D33: nd | E33: 4.000%
B34: BCO4 (SABADELL)-Mínimo | C34: BCO4 (SABADELL) | D34: Mínimo | E34: 4.00
B35: BCO5 (SANTANDER)-d | C35: BCO5 (SANTANDER) | D35: d | E35: 5.000%
B36: BCO5 (SANTANDER)-dna | C36: BCO5 (SANTANDER) | D36: dna | E36: 5.000%
B37: BCO5 (SANTANDER)-nd | C37: BCO5 (SANTANDER) | D37: nd | E37: 5.000%
B38: BCO5 (SANTANDER)-Mínimo | C38: BCO5 (SANTANDER) | D38: Mínimo | E38: 5.00
B39: BCO6 (BBVA)-d | C39: BCO6 (BBVA) | D39: d | E39: 6.000%
B40: BCO6 (BBVA)-dna | C40: BCO6 (BBVA) | D40: dna | E40: 6.000%
B41: BCO6 (BBVA)-nd | C41: BCO6 (BBVA) | D41: nd | E41: 6.000%
B42: BCO6 (BBVA)-Mínimo | C42: BCO6 (BBVA) | D42: Mínimo | E42: 6.00
B43: BCO7 (IBERCAJA)-d | C43: BCO7 (IBERCAJA) | D43: d | E43: 7.000%
B44: BCO7 (IBERCAJA)-dna | C44: BCO7 (IBERCAJA) | D44: dna | E44: 7.000%
B45: BCO7 (IBERCAJA)-nd | C45: BCO7 (IBERCAJA) | D45: nd | E45: 7.000%
B46: BCO7 (IBERCAJA)-Mínimo | C46: BCO7 (IBERCAJA) | D46: Mínimo | E46: 7.00
B47: BCO8 (MARCH)-d | C47: BCO8 (MARCH) | D47: d | E47: 8.000%
B48: BCO8 (MARCH)-dna | C48: BCO8 (MARCH) | D48: dna | E48: 8.000%
B49: BCO8 (MARCH)-nd | C49: BCO8 (MARCH) | D49: nd | E49: 8.000%
B50: BCO8 (MARCH)-Mínimo | C50: BCO8 (MARCH) | D50: Mínimo | E50: 8.00
B51: BCO9 (CAIXABANK)-d | C51: BCO9 (CAIXABANK) | D51: d | E51: 9.000%
B52: BCO9 (CAIXABANK)-dna | C52: BCO9 (CAIXABANK) | D52: dna | E52: 9.000%
B53: BCO9 (CAIXABANK)-nd | C53: BCO9 (CAIXABANK) | D53: nd | E53: 9.000%
B54: BCO9 (CAIXABANK)-Mínimo | C54: BCO9 (CAIXABANK) | D54: Mínimo | E54: 9.00
B55: Z
B56: Z
B57: Z
B58: Z
B61: TIPO DE DESCUENTO
B62: CLAVE | C62: ENTIDAD | D62: DÍAS | E62: TIPO
B63: =IF(C63="","Z",CONCATENATE(C63,"-",REPT("0",3-LEN(D63)),D63)) -> BCO1 (CAIXA POPULAR)-000 | C63: BCO1 (CAIXA POPULAR) | D63: 0 | E63: 1.00%
B64: BCO1 (CAIXA POPULAR)-061 | C64: BCO1 (CAIXA POPULAR) | D64: 61 | E64: 1.00%
B65: BCO1 (CAIXA POPULAR)-091 | C65: BCO1 (CAIXA POPULAR) | D65: 91 | E65: 1.00%
B66: BCO1 (CAIXA POPULAR)-121 | C66: BCO1 (CAIXA POPULAR) | D66: 121 | E66: 1.00%
B67: BCO1 (CAIXA POPULAR)-151 | C67: BCO1 (CAIXA POPULAR) | D67: 151 | E67: 1.00%
B68: BCO2 (POPULAR)-000 | C68: BCO2 (POPULAR) | D68: 0 | E68: 2.00%
B69: BCO2 (POPULAR)-061 | C69: BCO2 (POPULAR) | D69: 61 | E69: 2.00%
B70: BCO2 (POPULAR)-091 | C70: BCO2 (POPULAR) | D70: 91 | E70: 2.00%
B71: BCO2 (POPULAR)-121 | C71: BCO2 (POPULAR) | D71: 121 | E71: 2.00%
B72: BCO2 (POPULAR)-151 | C72: BCO2 (POPULAR) | D72: 151 | E72: 2.00%
B73: BCO3 (BANKINTER)-000 | C73: BCO3 (BANKINTER) | D73: 0 | E73: 3.00%
B74: BCO3 (BANKINTER)-061 | C74: BCO3 (BANKINTER) | D74: 61 | E74: 3.00%
B75: BCO3 (BANKINTER)-091 | C75: BCO3 (BANKINTER) | D75: 91 | E75: 3.00%
B76: BCO3 (BANKINTER)-121 | C76: BCO3 (BANKINTER) | D76: 121 | E76: 3.00%
B77: BCO3 (BANKINTER)-151 | C77: BCO3 (BANKINTER) | D77: 151 | E77: 3.00%
B78: =IF(C78="","Z",CONCATENATE(C78,"-",REPT("0",3-LEN(D78)),D78)) -> BCO4 (SABADELL)-000 | C78: BCO4 (SABADELL) | D78: 0 | E78: 4.00%
B79: BCO4 (SABADELL)-061 | C79: BCO4 (SABADELL) | D79: 61 | E79: 4.00%
B80: BCO4 (SABADELL)-091 | C80: BCO4 (SABADELL) | D80: 91 | E80: 4.00%
B81: BCO4 (SABADELL)-121 | C81: BCO4 (SABADELL) | D81: 121 | E81: 4.00%
B82: BCO4 (SABADELL)-151 | C82: BCO4 (SABADELL) | D82: 151 | E82: 4.00%
B83: BCO5 (SANTANDER)-000 | C83: BCO5 (SANTANDER) | D83: 0 | E83: 5.00%
B84: BCO5 (SANTANDER)-061 | C84: BCO5 (SANTANDER) | D84: 61 | E84: 5.00%
B85: BCO5 (SANTANDER)-091 | C85: BCO5 (SANTANDER) | D85: 91 | E85: 5.00%
B86: BCO5 (SANTANDER)-121 | C86: BCO5 (SANTANDER) | D86: 121 | E86: 5.00%
B87: BCO5 (SANTANDER)-151 | C87: BCO5 (SANTANDER) | D87: 151 | E87: 5.00%
B88: BCO6 (BBVA)-000 | C88: BCO6 (BBVA) | D88: 0 | E88: 6.00%
B89: BCO6 (BBVA)-061 | C89: BCO6 (BBVA) | D89: 61 | E89: 6.00%
B90: BCO6 (BBVA)-091 | C90: BCO6 (BBVA) | D90: 91 | E90: 6.00%
B91: BCO6 (BBVA)-121 | C91: BCO6 (BBVA) | D91: 121 | E91: 6.00%
B92: BCO6 (BBVA)-151 | C92: BCO6 (BBVA) | D92: 151 | E92: 6.00%
B93: BCO7 (IBERCAJA)-000 | C93: BCO7 (IBERCAJA) | D93: 0 | E93: 7.00%
B94: BCO7 (IBERCAJA)-061 | C94: BCO7 (IBERCAJA) | D94: 61 | E94: 7.00%
B95: BCO7 (IBERCAJA)-091 | C95: BCO7 (IBERCAJA) | D95: 91 | E95: 7.00%
B96: BCO7 (IBERCAJA)-121 | C96: BCO7 (IBERCAJA) | D96: 121 | E96: 7.00%
B97: BCO7 (IBERCAJA)-151 | C97: BCO7 (IBERCAJA) | D97: 151 | E97: 7.00%
B98: BCO8 (MARCH)-000 | C98: BCO8 (MARCH) | D98: 0 | E98: 8.00%
B99: BCO8 (MARCH)-061 | C99: BCO8 (MARCH) | D99: 61 | E99: 8.00%
B100: BCO8 (MARCH)-091 | C100: BCO8 (MARCH) | D100: 91 | E100: 8.00%
B101: BCO8 (MARCH)-121 | C101: BCO8 (MARCH) | D101: 121 | E101: 8.00%
B102: BCO8 (MARCH)-151 | C102: BCO8 (MARCH) | D102: 151 | E102: 8.00%
B103: =IF(C103="","Z",CONCATENATE(C103,"-",REPT("0",3-LEN(D103)),D103)) -> BCO9 (CAIXABANK)-000 | C103: BCO9 (CAIXABANK) | D103: 0 | E103: 9.00%
B104: =IF(C104="","Z",CONCATENATE(C104,"-",REPT("0",3-LEN(D104)),D104)) -> BCO9 (CAIXABANK)-061 | C104: BCO9 (CAIXABANK) | D104: 61 | E104: 9.00%
B105: =IF(C105="","Z",CONCATENATE(C105,"-",REPT("0",3-LEN(D105)),D105)) -> BCO9 (CAIXABANK)-091 | C105: BCO9 (CAIXABANK) | D105: 91 | E105: 9.00%
B106: =IF(C106="","Z",CONCATENATE(C106,"-",REPT("0",3-LEN(D106)),D106)) -> BCO9 (CAIXABANK)-121 | C106: BCO9 (CAIXABANK) | D106: 121 | E106: 9.00%
B107: =IF(C107="","Z",CONCATENATE(C107,"-",REPT("0",3-LEN(D107)),D107)) -> BCO9 (CAIXABANK)-151 | C107: BCO9 (CAIXABANK) | D107: 151 | E107: 9.00%
B108: Z
B109: Z
B110: Z
B111: Z
B112: Z
B115: CORREO
B116: CLAVE | C116: ENTIDAD | D116: CORREO
B117: =IF(C117="","Z",CONCATENATE(C117)) -> BCO1 (CAIXA POPULAR) | C117: BCO1 (CAIXA POPULAR) | D117: 1.00 €
B118: =IF(C118="","Z",CONCATENATE(C118)) -> BCO2 (POPULAR) | C118: BCO2 (POPULAR) | D118: 2.00 €
B119: BCO3 (BANKINTER) | C119: BCO3 (BANKINTER) | D119: 3.00 €
B120: BCO4 (SABADELL) | C120: BCO4 (SABADELL) | D120: 4.00 €
B121: BCO5 (SANTANDER) | C121: BCO5 (SANTANDER) | D121: 5.00 €
B122: BCO6 (BBVA) | C122: BCO6 (BBVA) | D122: 6.00 €
B123: BCO7 (IBERCAJA) | C123: BCO7 (IBERCAJA) | D123: 7.00 €
B124: BCO8 (MARCH) | C124: BCO8 (MARCH) | D124: 8.00 €
B125: BCO9 (CAIXABANK) | C125: BCO9 (CAIXABANK) | D125: 9.00 €
B126: Z

Sheet TIMBRES
B2: TIMBRES
B4: ESCALA DEL TIMBRE DEL IAJD
B5: NOMINAL | C5: TIMBRE
B6: 0 | C6: 0.06 €
B7: 24.05 € | C7: 0.12 €
B8: 48.09 € | C8: 0.24 €
B9: 90.16 € | C9: 0.48 €
B10: 180.31 € | C10: 0.96 €
B11: 360.62 € | C11: 1.98 €
B12: 751.28 € | C12: 4.21 €
B13: 1,502.54 € | C13: 8.41 €
B14: 3,005.07 € | C14: 16.83 €
B15: 6,010.13 € | C15: 33.66 €
B16: 12,020.25 € | C16: 67.31 €
B17: 24,040.49 € | C17: 134.63 €
B18: 48,080.98 € | C18: 269.25 €
B19: 96,161.95 € | C19: 538.51 €
B20: 192,323.88 € | C20: EXCESO*

Sheet ASIENTOS CONTABLES
B1: ASIENTOS CONTABLES DE LA NEGOCIACIÓN
B2: ASIENTO DE RECLASIFICACIÓN DE LOS EFECTOS
B3: Nº | C3: Fecha | D3: Código | E3: Cuenta | F3: Concepto | G3: Debe | H3: Haber
B4: 1 | C4: =FN -> 2014-01-15 | D4: 4311 | E4: Efectos comerciales descontados | F4: Reclasificación efectos | G4: =TOTAL_NEGOCIADO -> 6,000.00
B5: 1 | C5: =FN -> 2014-01-15 | D5: 4310 | E5: Efectos comerciales en cartera | F5: Reclasificación efectos | H5: =G4 -> 6,000.00
B8: ASIENTO DE CONTABILIZACIÓN DE LA NEGOCIACIÓN
B9: Nº | C9: Fecha | D9: Código | E9: Cuenta | F9: Concepto | G9: Debe | H9: Haber
B10: 2 | C10: =$C$4 -> 2014-01-15 | D10: 572 | E10: Bancos c/c | F10: Descuento n/remesa nº | G10: ='FRA. DTO. COMERCIAL'!E10 -> 5,644.53
B11: 2 | C11: =$C$4 -> 2014-01-15 | D11: 665 | E11: Intereses por descuento de efectos | F11: Descuento n/remesa nº | G11: ='FRA. DTO. COMERCIAL'!H10 -> 82.44
B12: 2 | C12: 2014-01-15 | D12: 626 | E12: Servicios bancarios | F12: Descuento n/remesa nº | G12: ='FRA. DTO. COMERCIAL'!J10+'FRA. DTO. COMERCIAL'!K10 -> 252.00
B13: 2 | C13: 2014-01-15 | D13: 631 | E13: Otros tributos | F13: Descuento n/remesa nº | G13: ='FRA. DTO. COMERCIAL'!L10 -> 21.03
B14: 2 | C14: 2014-01-15 | D14: 5208 | E14: Deudas por efectos descontados | F14: Descuento n/remesa nº | H14: =SUM(G10:G13) -> 6,000.00
